bitfinex-derivatives/quotes_ETHF0:USTF0_20240822
["timestamp","ask_amount","ask_price","bid_price","bid_amount"]
[1724322166063,2.46767197,2628.7,2628.6,0.00488019]
[1724322166264,5.89135197,2628.7,2628.6,0.00488019]
[1724322168252,11.77188905,2628.7,2628.6,0.00488019]
[1724322168862,6.77188905,2628.7,2628.6,0.00488019]
[1724322169059,11.77188905,2628.7,2628.6,0.00488019]
[1724322169260,11.39156905,2628.7,2628.6,0.00488019]
[1724322169567,6.39156905,2628.7,2628.6,0.00488019]
[1724322169767,11.39156905,2628.7,2628.6,0.00488019]
[1724322170276,6.39156905,2628.7,2628.6,0.00488019]
[1724322170668,1.49256905,2628.7,2628.6,1.48021019]
[1724322172261,2.58756905,2628.8,2628.6,1.09988019]
[1724322172566,0.99368111,2628.7,2628.6,1.09988019]
[1724322172770,0.99368111,2628.7,2628.6,1.48020019]
[1724322177864,1.37400111,2628.7,2628.6,1.48020019]
[1724322179475,0.99368111,2628.7,2628.6,1.48020019]
[1724322179665,2.08868111,2628.8,2628.7,0.38032]
[1724322179867,4.95407111,2628.9,2628.7,0.38032]
[1724322180063,0.99368111,2628.8,2628.7,0.38032]
[1724322180271,1.37398111,2628.8,2628.7,0.38032]
[1724322181058,1.37398111,2628.8,2628.6,1.48020019]
[1724322181256,1.37398111,2628.8,2628.6,0.38520019]
[1724322182176,0.99368111,2628.8,2628.7,0.38032]
[1724322182367,0.38031,2628.8,2628.6,0.38520019]
[1724322182671,1.37399111,2628.8,2628.6,0.38520019]
[1724322183262,0.38032,2628.7,2628.6,0.00488019]
[1724322183463,2.42612,2628.7,2628.6,0.00488019]
[1724322183672,7.22380111,2628.7,2628.6,0.00488019]
[1724322184475,6.27300111,2628.7,2628.6,0.00488019]
[1724322184774,5.27932,2628.7,2628.6,0.00488019]
[1724322185077,5.27932,2628.7,2628.6,0.38488019]
[1724322187671,5.27932,2628.7,2628.6,0.76521019]
[1724322189079,5.27932,2628.7,2628.6,0.38488019]
[1724322190179,5.27932,2628.7,2628.6,0.00488019]
[1724322190566,7.22380111,2628.7,2628.6,0.00488019]
[1724322190766,0.38038,2628.3,2628.1,0.3804]
[1724322190971,1.449,2628.2,2628.1,0.3804]
[1724322191182,1.8264,2628.2,2628.1,0.3804]
[1724322191475,0.7314,2628.2,2628.1,0.3804]
[1724322191671,0.7314,2628.2,2628.1,0.38427354]
[1724322193269,0.7314,2628.2,2628.1,1.47927354]
[1724322193479,0.354,2628.2,2628.1,1.47927354]
[1724322197278,3.21350657,2628.4,2628.3,0.38037]
[1724322197474,3.21350657,2628.4,2628.3,1.47537]
[1724322197885,3.21350657,2628.4,2628.3,1.83277]
[1724322199678,0.00570657,2628.4,2628.3,1.83277]
[1724322202388,0.00570657,2628.4,2628.3,5.04057]
[1724322203193,0.00570657,2628.4,2628.3,8.84537]
[1724322203575,0.99260574,2628.7,2628.3,9.41594]
[1724322203786,0.99260574,2628.8,2628.6,1.095]
[1724322203980,0.99260574,2628.8,2628.7,0.7186]
[1724322204477,0.99260574,2628.8,2628.7,1.09892]
[1724322205080,0.99260574,2628.8,2628.7,1.44752]
[1724322206791,4.56220574,2628.9,2628.8,0.3803]
[1724322206991,0.99440988,2628.9,2628.8,1.4753]
[1724322207382,0.99440988,2628.9,2628.8,5.2793]
[1724322209387,1.49461519,2629.0,2628.9,0.38029]
[1724322209388,0.00570657,2629.0,2628.9,0.38029]
[1724322209592,0.00570657,2629.0,2628.9,8.17737728]
[1724322209789,0.00570657,2629.0,2628.9,8.67707462]
[1724322210291,0.00570657,2629.0,2628.9,7.18112192]
[1724322211289,0.00570657,2629.0,2628.9,8.17686679]
[1724322211592,0.00570657,2629.0,2628.9,7.63550754]
[1724322211988,0.00570657,2629.0,2628.9,8.63134575]
[1724322212187,0.00570657,2629.0,2628.9,6.72951383]
[1724322212386,0.00570657,2629.0,2628.9,9.93731383]
[1724322212596,0.00570657,2629.0,2628.9,12.78987535]
[1724322212894,0.00570657,2629.0,2628.9,13.28985352]
[1724322214999,0.00570657,2629.0,2628.9,13.28973924]
[1724322215307,0.00570657,2629.0,2628.9,11.79392286]
[1724322215884,0.00570657,2629.0,2628.9,13.28973924]
[1724322216199,0.00570657,2629.0,2628.9,12.78853621]
[1724322217190,0.00570657,2629.0,2628.9,10.88680897]
[1724322217796,0.00570657,2629.0,2628.9,11.83752897]
[1724322217990,0.00294074,2629.2,2629.1,2.42591]
[1724322218500,0.00294074,2629.2,2629.1,6.22911]
[1724322218802,0.00294074,2629.2,2629.1,8.32589973]
[1724322218994,0.00294074,2629.2,2629.1,7.33151]
[1724322221097,0.00294074,2629.2,2629.1,13.28216]
[1724322221396,7.4e-07,2629.2,2629.1,16.17801884]
[1724322221590,7.4e-07,2629.2,2629.1,15.18362911]
[1724322221798,0.3853,2629.8,2629.7,0.38017]
[1724322222001,0.3853,2629.8,2629.7,1.47517]
[1724322222701,0.38982558,2629.8,2629.7,1.47517]
[1724322223709,0.00452558,2629.8,2629.7,1.47517]
[1724322239906,0.00452558,2629.8,2629.7,6.228]
[1724322242011,0.38009,2630.3,2629.7,6.228]
[1724322242012,3.2078,2630.4,2630.0,0.95032]
[1724322242312,0.3812,2630.4,2630.3,1.47508]
[1724322242905,0.38583324,2630.4,2630.3,1.47818749]
[1724322243716,0.75813324,2630.4,2630.3,1.47818749]
[1724322248216,0.37693324,2630.4,2630.3,1.47818749]
[1724322250511,4.55860324,2630.4,2630.3,0.00310749]
[1724322250821,5.65360324,2630.4,2630.3,0.00310749]
[1724322252325,7.59819312,2630.4,2630.3,0.00310749]
[1724322252723,6.64801312,2630.4,2630.3,0.00310749]
[1724322254222,5.65360324,2630.4,2630.3,0.00310749]
[1724322254515,5.65360324,2630.4,2630.3,1.09810749]
[1724322254516,4.17853324,2630.4,2630.3,1.09810749]
[1724322254720,5.55139293,2630.4,2630.3,1.09810749]
[1724322254918,5.17132293,2630.4,2630.3,0.00310749]
[1724322255321,5.55139293,2630.4,2630.3,0.00310749]
[1724322258328,6.04751186,2630.4,2630.3,0.00310749]
[1724322258918,4.55860324,2630.4,2630.3,0.00310749]
[1724322259123,6.04751186,2630.4,2630.3,0.00310749]
[1724322261125,5.66744186,2630.4,2630.3,1.47818749]
[1724322262021,4.17853324,2630.4,2630.3,1.47818749]
[1724322262729,0.00463324,2630.4,2630.3,1.47818749]
[1724322262920,0.999588,2630.4,2630.3,1.47818749]
[1724322264725,0.999588,2630.4,2630.3,5.64208749]
[1724322267021,0.00463324,2630.4,2630.3,6.59230749]
[1724322267223,0.00463324,2630.4,2630.3,12.5857344]
[1724322267625,0.00463324,2630.4,2630.3,7.5857344]
[1724322267842,0.00463324,2630.4,2630.3,6.59230749]
[1724322268228,0.00463324,2630.4,2630.3,7.5857344]
[1724322268419,0.00463324,2630.4,2630.3,7.9526344]
[1724322268820,0.00463324,2630.4,2630.3,6.95920749]
[1724322269833,0.00463324,2630.4,2630.3,6.00898749]
[1724322270026,0.00463324,2630.4,2630.3,4.91398749]
[1724322270231,0.00463324,2630.4,2630.3,2.20738749]
[1724322270232,1.378588,2630.4,2630.3,2.20738749]
[1724322270524,0.00463324,2630.4,2630.3,2.20738749]
[1724322271321,0.00463324,2630.4,2630.3,3.2008144]
[1724322274632,0.00463324,2630.4,2630.3,3.65057546]
[1724322275131,0.00463324,2630.4,2630.3,5.55142181]
[1724322275429,0.00463324,2630.4,2630.3,5.55141255]
[1724322277029,0.00463324,2630.4,2630.3,4.55798564]
[1724322277229,0.00463324,2630.4,2630.3,6.05380202]
[1724322277426,0.00463324,2630.4,2630.3,4.55798564]
[1724322277926,0.00463324,2630.4,2630.3,4.55788032]
[1724322278132,0.00463324,2630.4,2630.3,7.00065985]
[1724322278323,0.00463324,2630.4,2630.3,4.60238512]
[1724322278523,0.00463324,2630.4,2630.3,11.20238512]
[1724322279422,0.00463324,2630.4,2630.3,20.95420512]
[1724322279738,0.00463324,2630.4,2630.3,21.85987043]
[1724322279924,0.00463324,2630.4,2630.3,23.35242996]
[1724322280628,0.00463324,2630.4,2630.3,21.85987043]
[1724322281037,0.00463324,2630.4,2630.3,23.35242996]
[1724322281431,0.00463324,2630.4,2630.3,21.85987043]
[1724322281831,0.00463324,2630.4,2630.3,23.35242996]
[1724322283537,0.00463324,2630.4,2630.3,21.85987043]
[1724322283832,0.00463324,2630.4,2630.3,22.85486898]
[1724322284237,0.00463324,2630.4,2630.3,21.85987043]
[1724322285229,0.99495476,2630.7,2630.6,0.38004]
[1724322285426,0.99495476,2630.7,2630.6,1.47504]
[1724322285737,0.99495476,2630.7,2630.6,1.85684]
[1724322286337,0.99907654,2630.7,2630.6,1.85684]
[1724322286530,0.00412178,2630.7,2630.6,2.85189306]
[1724322286734,0.00412178,2630.7,2630.6,1.85684]
[1724322286939,0.00412178,2630.7,2630.6,2.85189306]
[1724322287143,0.00412178,2630.7,2630.6,1.85684]
[1724322287734,0.00412178,2630.7,2630.6,2.85189306]
[1724322288345,0.00412178,2630.7,2630.6,6.05969306]
[1724322288646,0.00412178,2630.7,2630.6,6.49801667]
[1724322292040,0.00412178,2630.7,2630.6,3.29021667]
[1724322292242,0.00412178,2630.7,2630.6,5.50296361]
[1724322301549,0.00412178,2630.7,2630.6,6.49801667]
[1724322303550,0.00412178,2630.7,2630.6,8.3985986]
[1724322303945,0.00412178,2630.7,2630.6,8.39859881]
[1724322304551,0.00412178,2630.7,2630.6,8.89610528]
[1724322306349,0.00412178,2630.7,2630.6,9.84621528]
[1724322306547,2.37005207,2631.2,2630.7,0.95007]
[1724322306548,0.99495476,2631.1,2630.7,0.95007]
[1724322306748,0.99495476,2631.1,2631.0,2.46997732]
[1724322307049,1.37705476,2631.2,2631.1,0.37997]
[1724322307352,1.3776313,2631.2,2631.1,1.47497]
[1724322307547,1.38148308,2631.2,2631.1,1.47497]
[1724322307950,0.38595178,2631.2,2631.1,2.46996732]
[1724322308354,1.38148308,2631.2,2631.1,2.46996732]
[1724322308656,1.38148308,2631.2,2631.1,1.095]
[1724322309257,1.38148308,2631.2,2631.1,1.47497]
[1724322309458,1.38148308,2631.2,2631.1,1.095]
[1724322311262,0.38595178,2631.2,2631.1,1.095]
[1724322311458,1.38134993,2631.2,2631.1,1.47497]
[1724322311852,0.38595178,2631.2,2631.1,1.47497]
[1724322312052,0.38595178,2631.2,2631.1,2.46996732]
[1724322312351,0.38595178,2631.2,2631.1,1.47497]
[1724322312661,1.38134993,2631.2,2631.1,1.095]
[1724322313055,1.38134993,2631.2,2631.1,1.47497]
[1724322314564,0.38595178,2631.2,2631.1,1.47497]
[1724322314752,0.38595178,2631.2,2631.1,2.46996732]
[1724322315065,0.38595178,2631.2,2631.1,1.47497]
[1724322315266,0.38595178,2631.2,2631.1,2.46996732]
[1724322315463,0.38595178,2631.2,2631.1,1.47497]
[1724322316265,0.38595178,2631.2,2631.1,1.83747]
[1724322316461,0.38595178,2631.2,2631.1,2.83246732]
[1724322316660,1.8748604,2631.2,2631.1,2.21837]
[1724322316860,0.00385178,2631.2,2631.1,2.21837]
[1724322317064,0.99893395,2631.2,2631.1,2.21837]
[1724322317961,0.99893395,2631.2,2631.1,10.1769]
[1724322318171,0.00385178,2631.2,2631.1,10.1769]
[1724322318370,0.00385178,2631.2,2631.1,6.3761]
[1724322318559,0.00385178,2631.2,2631.1,10.1769]
[1724322319465,0.99508217,2631.4,2631.3,0.37994]
[1724322319659,0.99508217,2631.4,2631.3,2.42479]
[1724322319865,0.99477667,2631.5,2631.4,0.37992]
[1724322320260,1.48890862,2631.6,2631.5,0.37991]
[1724322320464,1.492472,2631.6,2631.5,1.47491]
[1724322322269,0.00356338,2631.6,2631.5,1.095]
[1724322323170,0.38346338,2631.6,2631.5,1.095]
[1724322323570,2.37355545,2631.6,2631.5,1.095]
[1724322323874,1.377988,2631.6,2631.5,1.095]
[1724322324472,0.998088,2631.6,2631.5,1.095]
[1724322325367,0.00356338,2631.6,2631.5,1.095]
[1724322325778,0.998088,2631.6,2631.5,1.095]
[1724322325968,0.00356338,2631.6,2631.5,1.095]
[1724322326175,0.00356338,2631.6,2631.5,1.47491]
[1724322328778,0.00356338,2631.6,2631.5,6.22469]
[1724322329074,0.00356338,2631.6,2631.5,6.60459]
[1724322329580,0.00356338,2631.6,2631.5,1.47491]
[1724322329876,0.38346338,2631.6,2631.5,1.095]
[1724322330477,0.38346338,2631.6,2631.5,1.47491]
[1724322331386,0.00356338,2631.6,2631.5,1.47491]
[1724322332986,1.49461232,2631.6,2631.5,1.47491]
[1724322334681,1.49461232,2631.6,2631.5,2.17781]
[1724322335482,0.00356338,2631.6,2631.5,2.17781]
[1724322336375,0.00356338,2631.6,2631.5,2.62272354]
[1724322337376,3.22808509,2631.8,2631.5,2.62272354]
[1724322337377,1.99009207,2631.8,2631.7,0.37988]
[1724322337576,1.99009207,2631.8,2631.7,1.47488]
[1724322337577,1.49098869,2631.8,2631.7,1.47488]
[1724322338379,1.49405437,2631.8,2631.7,1.47488]
[1724322338585,1.86025437,2631.8,2631.7,1.47488]
[1724322338783,0.36926568,2631.8,2631.7,1.47488]
[1724322340881,0.00306568,2631.8,2631.7,1.47488]
[1724322342381,0.00306568,2631.8,2631.7,2.42459]
[1724322345185,0.00306568,2631.8,2631.7,7.21958732]
[1724322345498,0.00306568,2631.8,2631.7,10.06893481]
[1724322345790,0.00306568,2631.8,2631.7,8.16929732]
[1724322346299,0.00306568,2631.8,2631.7,13.16929732]
[1724322346796,3.59791509,2632.3,2632.2,0.37981]
[1724322346997,3.6090464,2632.3,2632.2,1.47481]
[1724322347500,0.7415,2632.3,2632.2,1.47481]
[1724322347695,1.12435229,2632.3,2632.2,1.47804497]
[1724322347996,1.12435229,2632.3,2632.2,1.84214497]
[1724322348582,3.61196738,2632.3,2632.2,1.84214497]
[1724322348800,1.12435229,2632.3,2632.2,1.84214497]
[1724322349089,1.12435229,2632.3,2632.2,1.47804497]
[1724322349597,1.50414229,2632.3,2632.2,1.47804497]
[1724322349791,1.12435229,2632.3,2632.2,1.47804497]
[1724322349990,0.74442548,2632.3,2632.2,1.47804497]
[1724322350487,1.12421548,2632.3,2632.2,1.47804497]
[1724322350690,1.5041476,2632.3,2632.2,1.47804497]
[1724322350882,1.12421548,2632.3,2632.2,1.47804497]
[1724322351088,1.50414896,2632.3,2632.2,1.47804497]
[1724322351285,1.12435731,2632.3,2632.2,1.47804497]
[1724322352389,3.9917624,2632.3,2632.2,1.47804497]
[1724322352991,3.6119724,2632.3,2632.2,1.47804497]
[1724322353193,0.38312548,2632.3,2632.2,1.47804497]
[1724322353795,1.37679007,2632.3,2632.2,1.47804497]
[1724322353993,0.38312548,2632.3,2632.2,1.47804497]
[1724322354195,0.38312548,2632.3,2632.2,2.42757497]
[1724322354388,0.00292548,2632.3,2632.2,1.47804497]
[1724322354786,0.35112548,2632.3,2632.2,1.47804497]
[1724322355295,0.00292548,2632.3,2632.2,1.47804497]
[1724322357296,0.00292548,2632.3,2632.2,5.27724497]
[1724322358600,0.00292548,2632.3,2632.2,6.22677497]
[1724322358794,0.00292548,2632.3,2632.2,7.17630497]
[1724322359694,0.00292548,2632.3,2632.2,6.22677497]
[1724322361890,1.49274349,2632.3,2632.2,6.22677497]
[1724322362287,1.68268479,2632.3,2632.2,6.22677497]
[1724322363499,0.19286678,2632.3,2632.2,4.18224497]
[1724322363795,0.55846678,2632.3,2632.2,5.27724497]
[1724322364093,2.92569079,2632.3,2632.2,5.27724497]
[1724322366094,2.92570324,2632.3,2632.2,1.47804497]
[1724322366896,3.28120324,2632.3,2632.2,1.47804497]
[1724322368399,3.28120324,2632.3,2632.2,0.00323497]
[1724322368597,3.28120324,2632.3,2632.2,1.09823497]
[1724322368598,4.58048957,2632.3,2632.2,1.09823497]
[1724322368803,1.48461548,2632.3,2632.2,1.09823497]
[1724322369001,2.47795701,2632.3,2632.2,1.09823497]
[1724322369701,2.47795701,2632.3,2632.2,0.00323497]
[1724322370001,11.27715701,2632.3,2632.2,0.00323497]
[1724322370186,16.3834894,2632.3,2631.4,0.99222365]
[1724322370387,16.3834894,2632.3,2631.1,6.1704473]
[1724322370388,0.37989,2631.7,2631.6,1.095]
[1724322370590,0.99360965,2631.7,2631.6,1.095]
[1724322370796,0.99360965,2631.7,2631.4,0.37992]
[1724322370797,0.94978,2631.5,2631.0,1.095]
[1724322370988,0.99395169,2631.2,2631.1,1.095]
[1724322371192,0.99395169,2631.2,2631.1,1.09833538]
[1724322371399,5.16575169,2631.2,2631.1,1.09833538]
[1724322372493,5.16575169,2631.2,2631.1,0.00333538]
[1724322373105,4.1718,2631.2,2631.1,0.00333538]
[1724322373288,4.538,2631.2,2631.1,0.00333538]
[1724322375803,4.91795,2631.2,2631.1,0.00333538]
[1724322376198,9.91795,2631.2,2631.1,0.00333538]
[1724322377703,4.91795,2631.2,2631.1,0.00333538]
[1724322378208,4.538,2631.2,2631.1,0.00333538]
[1724322378901,4.538,2631.2,2631.1,0.38330538]
[1724322379303,4.538,2631.2,2631.1,0.00333538]
[1724322379900,4.538,2631.2,2631.1,0.38330538]
[1724322380804,4.91795,2631.2,2631.1,0.00333538]
[1724322381009,4.538,2631.2,2631.1,0.38330538]
[1724322381509,0.7372,2631.2,2631.1,0.38330538]
[1724322381905,1.11715,2631.2,2631.1,0.38330538]
[1724322382099,1.11715,2631.2,2631.1,0.00333538]
[1724322382303,4.538,2631.2,2631.1,0.00333538]
[1724322382508,4.538,2631.2,2631.1,0.38330538]
[1724322382802,0.99395169,2631.7,2631.1,0.00333538]
[1724322383016,0.3499,2631.5,2631.4,0.37992]
[1724322383604,3.2078,2631.8,2631.7,0.37988]
[1724322383813,3.5577,2631.8,2631.7,0.37988]
[1724322384316,7.3577,2631.8,2631.7,0.37988]
[1724322385218,7.73757,2631.8,2631.7,0.37988]
[1724322385421,7.3577,2631.8,2631.7,0.37988]
[1724322386009,7.73757,2631.8,2631.6,0.37988]
[1724322386211,4.93152169,2631.8,2631.6,0.37988]
[1724322386516,3.93757,2631.8,2631.7,0.37988]
[1724322386718,3.93757,2631.8,2631.6,0.37989]
[1724322386921,3.93757,2631.8,2631.2,3.93057]
[1724322387216,3.93757,2631.8,2631.6,0.37989]
[1724322387419,3.93757,2631.8,2631.7,0.37988]
[1724322388014,0.37988,2631.7,2631.5,0.3799]
[1724322388205,0.37988,2631.7,2631.6,0.37989]
[1724322388409,0.37988,2631.7,2631.2,2.627]
[1724322388606,0.37993,2631.4,2631.1,0.00333538]
[1724322388823,0.368,2631.3,2631.2,0.37995]
[1724322389307,0.368,2631.3,2631.1,0.38329538]
[1724322389518,0.37995,2631.2,2631.1,0.00333538]
[1724322391418,0.74795,2631.3,2631.1,0.38330538]
[1724322393819,0.37995,2631.2,2631.1,0.00333538]
[1724322394223,7.38855,2631.2,2631.1,0.00333538]
[1724322397323,8.33844,2631.2,2631.1,0.00333538]
[1724322398030,7.38855,2631.2,2631.1,0.00333538]
[1724322398618,8.33844,2631.2,2631.1,0.00333538]
[1724322400828,7.38855,2631.2,2631.1,0.00333538]
[1724322401329,7.38855,2631.2,2631.1,0.38330538]
[1724322401829,7.38855,2631.2,2631.1,0.00333538]
[1724322402028,3.2078,2631.2,2631.1,0.38330538]
[1724322402227,3.2078,2631.2,2631.1,1.12810538]
[1724322403632,3.58775,2631.2,2631.1,1.12810538]
[1724322404922,7.38855,2631.2,2631.1,0.38330538]
[1724322407524,3.58775,2631.2,2631.1,0.38330538]
[1724322407723,0.37995,2631.2,2631.1,0.38330538]
[1724322408232,0.37995,2631.3,2631.2,0.37994]
[1724322409729,4.20175169,2631.4,2631.3,0.37994]
[1724322410031,3.2078,2631.4,2631.3,0.37994]
[1724322411824,0.99395169,2631.5,2631.4,0.37992]
[1724322414021,1.73776169,2631.6,2631.4,0.37992]
[1724322414227,0.99395169,2631.5,2631.4,0.37992]
[1724322414427,2.23473754,2631.6,2631.4,0.37992]
[1724322414632,0.99467067,2631.5,2631.4,0.37992]
[1724322415131,1.49092754,2631.5,2631.4,0.37992]
[1724322416639,0.37991,2631.5,2631.4,1.47492]
[1724322417035,2.73170339,2631.6,2631.4,1.47492]
[1724322417238,1.49339545,2631.5,2631.4,1.47492]
[1724322417628,2.73170339,2631.6,2631.4,1.47492]
[1724322418336,2.73170339,2631.6,2631.4,1.47491]
[1724322419239,2.73170339,2631.6,2631.5,0.37991]
[1724322420640,5.93950339,2631.6,2631.5,0.37991]
[1724322423741,5.93950339,2631.6,2631.5,1.13441]
[1724322425041,5.93950339,2631.6,2631.5,0.7545]
[1724322425241,5.93950339,2631.6,2631.4,1.47491]
[1724322425242,0.37991,2631.5,2631.4,1.47491]
[1724322426537,5.93950339,2631.6,2631.4,1.47491]
[1724322427343,5.93950339,2631.6,2631.4,1.095]
[1724322427546,5.93950339,2631.6,2631.5,0.37991]
[1724322431348,5.93950339,2631.6,2631.4,1.095]
[1724322431349,0.37991,2631.5,2631.4,1.47492]
[1724322431645,0.37991,2631.5,2631.1,1.94546903]
[1724322431646,0.37995,2631.3,2631.1,2.47050903]
[1724322431847,0.75055,2631.2,2631.1,2.47050903]
[1724322432047,0.3706,2631.2,2631.1,2.47050903]
[1724322432446,1.86433836,2631.2,2631.1,0.38328538]
[1724322432961,2.24428836,2631.2,2631.1,0.00333538]
[1724322433747,1.86433836,2631.2,2631.1,0.00333538]
[1724322434146,1.86433836,2631.2,2631.1,0.38330538]
[1724322435348,6.59624,2631.2,2631.1,0.00333538]
[1724322435748,9.08111924,2631.2,2631.1,0.00333538]
[1724322436244,14.08111924,2631.2,2631.1,0.00333538]
[1724322436847,11.59624,2631.2,2631.1,0.00333538]
[1724322438248,14.08568975,2631.2,2631.1,0.00333538]
[1724322438445,11.59624,2631.2,2631.1,0.00333538]
[1724322439044,11.59624,2631.2,2630.9,0.00570657]
[1724322439045,0.37998,2631.0,2630.9,0.00570657]
[1724322439241,5.57936543,2631.0,2630.9,0.00570657]
[1724322439445,10.33012543,2631.0,2630.9,0.00570657]
[1724322439658,11.42512543,2631.0,2630.9,0.00570657]
[1724322440051,11.80972543,2631.0,2630.9,0.00570657]
[1724322440252,11.80972543,2631.0,2630.9,0.00874099]
[1724322440471,15.7681,2631.0,2630.9,0.00874099]
[1724322440651,0.38005,2630.6,2630.5,0.38005]
[1724322440849,6.17633423,2630.6,2630.5,0.38005]
[1724322441047,8.50288423,2630.6,2630.5,0.38005]
[1724322441242,8.50288423,2630.6,2630.5,1.47505]
[1724322441447,8.88292423,2630.6,2630.5,1.095]
[1724322441648,8.88292423,2630.6,2630.5,1.09865446]
[1724322442455,7.38944,2630.6,2630.5,1.09865446]
[1724322443061,7.38944,2630.6,2630.5,1.47870446]
[1724322443250,8.38429489,2630.6,2630.5,1.47870446]
[1724322444054,5.17649489,2630.6,2630.5,1.47870446]
[1724322444361,8.38409874,2630.6,2630.5,1.47870446]
[1724322444660,8.38409874,2630.6,2630.5,1.09865446]
[1724322445061,11.29502423,2630.6,2630.5,0.00365446]
[1724322446564,10.34492423,2630.6,2630.5,0.00365446]
[1724322447356,8.38332264,2630.6,2630.5,0.00365446]
[1724322447562,4.58172264,2630.6,2630.5,0.00365446]
[1724322447767,7.38944,2630.6,2630.5,0.00365446]
[1724322447970,8.88292423,2630.6,2630.5,0.00365446]
[1724322448163,7.38944,2630.6,2630.5,0.00365446]
[1724322449066,8.33954,2630.6,2630.5,0.00365446]
[1724322449265,9.33298216,2630.6,2630.5,0.00365446]
[1724322449455,8.33954,2630.6,2630.5,0.00365446]
[1724322449856,10.42798948,2630.6,2630.5,0.00365446]
[1724322452162,0.38007,2630.4,2630.3,0.00570657]
[1724322452362,0.38007,2630.4,2629.9,0.357]
[1724322452363,0.95025,2630.2,2629.9,0.357]
[1724322452664,4.68293,2630.0,2629.9,0.357]
[1724322453164,9.4394739,2630.0,2629.9,0.00449345]
[1724322453363,0.38017,2629.7,2629.5,0.38590657]
[1724322453558,3.2078,2629.6,2629.5,0.38590657]
[1724322454266,3.2078,2629.6,2629.5,1.48581699]
[1724322455968,3.2078,2629.6,2629.5,1.10561699]
[1724322456159,3.2078,2629.6,2629.5,1.48581699]
[1724322456558,3.2078,2629.6,2629.5,0.39081699]
[1724322456766,3.58798,2629.6,2629.5,0.01061699]
[1724322457267,3.2078,2629.6,2629.5,0.01061699]
[1724322458557,3.58798,2629.6,2629.5,0.01061699]
[1724322458759,3.95318,2629.6,2629.5,0.01061699]
[1724322459167,4.90365,2629.6,2629.5,0.01061699]
[1724322459365,8.70685,2629.6,2629.5,0.01061699]
[1724322462665,7.75638,2629.6,2629.5,0.01061699]
[1724322463172,3.2078,2629.6,2629.5,0.39081699]
[1724322463369,3.58798,2629.6,2629.5,0.36351699]
[1724322463567,3.2078,2629.6,2629.5,0.74371699]
[1724322464459,3.58798,2629.6,2629.5,0.36351699]
[1724322464861,3.58798,2629.6,2629.5,0.74371699]
[1724322465075,3.2078,2629.6,2629.5,0.74371699]
[1724322466775,3.2078,2629.6,2629.5,4.54691699]
[1724322466975,3.2078,2629.9,2629.6,0.95047]
[1724322467269,3.2078,2629.9,2629.8,0.38015]
[1724322467768,3.2078,2629.9,2629.8,4.18255]
[1724322476866,0.0038239,2630.0,2629.9,0.38014]
[1724322477065,0.3839539,2630.0,2629.9,0.73314]
[1724322477271,0.3839539,2630.0,2629.9,4.53554]
[1724322478181,0.3839539,2630.0,2629.9,0.38014]
[1724322478472,0.0038239,2630.0,2629.9,0.38014]
[1724322478676,0.0038239,2630.0,2629.9,4.18254]
[1724322483075,0.0038239,2630.0,2629.9,12.39034]
[1724322483279,0.0038239,2630.0,2629.9,15.9697]
[1724322483472,3.2078,2630.5,2630.1,0.95028]
[1724322483677,3.2078,2630.5,2630.4,0.38007]
[1724322484376,0.00474514,2630.5,2630.4,0.38007]
[1724322485682,0.00474514,2630.5,2630.2,1.27735484]
[1724322485683,0.00474514,2630.5,2630.3,0.38007]
[1724322486083,0.00474514,2630.5,2630.2,1.27735484]
[1724322487071,0.00474514,2630.5,2630.4,0.38007]
[1724322494492,0.00474514,2630.5,2630.4,6.22685]
[1724322494691,3.2078,2630.7,2630.6,0.38004]
[1724322494992,3.2078,2630.7,2630.6,5.27664]
[1724322495196,3.2078,2630.7,2630.6,6.36954]
[1724322495496,3.2078,2630.7,2630.6,7.31964]
[1724322495686,3.2106344,2630.7,2630.6,7.31964]
[1724322495888,3.2106344,2630.7,2630.6,6.36954]
[1724322496587,3.2106344,2630.7,2630.6,5.27454]
[1724322497391,3.2106344,2630.7,2630.6,4.89894]
[1724322497602,3.5845344,2630.7,2630.6,4.18164]
[1724322500395,3.5845344,2630.7,2630.6,4.62020908]
[1724322501596,0.3767344,2630.7,2630.6,4.62020908]
[1724322502001,0.3767344,2630.7,2630.6,4.18164]
[1724322502702,0.3767344,2630.7,2630.6,0.38004]
[1724322503603,0.3767344,2630.7,2630.6,4.18164]
[1724322504996,0.3767344,2630.7,2630.6,5.13174]
[1724322504997,0.0028344,2630.7,2630.6,5.13174]
[1724322505201,0.00570657,2630.8,2630.7,1.33009]
[1724322505404,0.00570657,2630.8,2630.7,0.38002]
[1724322505698,0.00570657,2630.8,2630.7,4.18082]
[1724322506298,0.009207,2630.8,2630.7,4.18082]
[1724322511101,0.009207,2630.8,2630.7,4.63697216]
[1724322512599,0.009207,2630.8,2630.7,0.38002]
[1724322512903,0.009207,2630.8,2630.7,4.18082]
[1724322513100,0.009207,2630.8,2630.7,0.38002]
[1724322513502,0.389217,2630.8,2630.5,0.38004]
[1724322513699,0.7367,2630.7,2630.6,0.38004]
[1724322513898,0.3806,2630.7,2630.6,0.38004]
[1724322514098,0.009207,2630.8,2630.7,0.38002]
[1724322514304,0.009207,2630.8,2630.7,0.72922]
[1724322516397,0.009207,2630.8,2630.7,4.53002]
[1724322517104,0.009207,2630.8,2630.7,4.97597642]
[1724322517507,0.009207,2630.8,2630.7,4.53002]
[1724322518402,0.009207,2630.8,2630.7,5.62502]
[1724322518598,0.009207,2630.8,2630.7,1.47502]
[1724322519609,0.382907,2630.8,2630.7,1.83702]
[1724322519999,0.382907,2630.8,2630.7,5.63782]
[1724322523501,0.382907,2630.8,2630.7,1.83702]
[1724322525812,1.37559581,2630.8,2630.7,1.83702]
[1724322526406,0.382907,2630.8,2630.7,1.83702]
[1724322527204,1.37559581,2630.8,2630.7,1.83702]
[1724322527807,0.99543998,2631.2,2631.1,1.32989]
[1724322528004,0.99538704,2631.4,2631.3,0.37994]
[1724322528214,0.99538704,2631.5,2631.4,0.37992]
[1724322528518,0.712,2631.6,2631.4,0.37992]
[1724322528519,0.99538704,2631.6,2631.5,0.37991]
[1724322528706,0.99917023,2631.6,2631.5,3.76897129]
[1724322529208,0.00378319,2631.6,2631.5,2.47214519]
[1724322529514,0.00378319,2631.6,2631.5,2.47216891]
[1724322529716,0.00378319,2631.6,2631.5,1.4786671]
[1724322530016,3.80378319,2631.6,2631.5,0.0037571]
[1724322530211,0.00378319,2631.6,2631.5,1.0987571]
[1724322532315,0.00378319,2631.6,2631.5,1.4786671]